bitfinex-derivatives/quotes_ETHF0:USTF0_20250727
["timestamp","ask_amount","ask_price","bid_price","bid_amount"]
[1753618992718,29.30922,3829.9,3829.8,6.40403]
[1753618993514,3.8714,3829.6,3829.5,1.2036]
[1753618993713,25.90046,3829.6,3829.5,1.2036]
[1753618994320,25.90046,3829.6,3829.5,2.692]
[1753618994722,25.90046,3829.6,3829.5,3.4588]
[1753618994910,25.90046,3829.6,3829.5,4.3394]
[1753618995312,0.52207,3829.5,3829.4,0.52208]
[1753618995518,7.60127,3829.5,3829.4,5.45848]
[1753618995715,7.60127,3829.5,3829.4,5.45849]
[1753618996931,7.60127,3829.5,3829.4,6.40409]
[1753618998532,7.0792,3829.5,3829.4,6.40409]
[1753618998724,1.5036,3829.5,3829.4,6.40409]
[1753618999236,0.5643,3829.7,3829.6,1.3638]
[1753618999434,22.0583,3829.7,3829.6,3.513]
[1753618999632,22.58035,3829.7,3829.6,6.40406]
[1753618999933,22.0583,3829.7,3829.6,6.40406]
[1753619000132,21.494,3829.7,3829.6,6.40406]
[1753619000834,21.494,3829.7,3829.4,1.3052]
[1753619000835,3.4078,3829.9,3829.8,6.40403]
[1753619001035,24.8978,3829.9,3829.8,6.40403]
[1753619001929,3.4078,3829.9,3829.8,6.40403]
[1753619003132,3.9721,3829.9,3829.8,6.40403]
[1753619003333,7.2792,3829.9,3829.8,6.40403]
[1753619004039,29.28222,3829.9,3829.8,0.7668]
[1753619004224,2.3736,3829.6,3829.5,6.40407]
[1753619004426,4.39346,3829.6,3829.5,6.40407]
[1753619004837,4.39346,3829.6,3829.5,1.28887]
[1753619006633,4.39346,3829.6,3829.5,4.86147]
[1753619006838,4.39346,3829.6,3829.5,6.40407]
[1753619007235,4.39346,3829.6,3829.5,5.52347]
[1753619007538,4.39346,3829.6,3829.5,2.83147]
[1753619008230,4.39346,3829.6,3829.5,6.44047]
[1753619010838,4.39346,3829.6,3829.5,5.9184]
[1753619011038,4.28784,3829.2,3829.1,4.4766]
[1753619011344,4.28784,3829.2,3829.1,0.7686]
[1753619011534,4.28784,3829.2,3828.9,1.229]
[1753619011535,0.52214,3829.0,3828.9,1.9976]
[1753619011735,4.28784,3829.0,3828.9,3.4601]
[1753619012238,4.28784,3829.0,3828.9,3.98226]
[1753619012442,4.28784,3829.0,3828.9,4.3776]
[1753619013142,7.49564,3829.0,3828.9,4.3776]
[1753619013546,7.49564,3829.0,3828.9,0.7686]
[1753619013851,0.52221,3828.5,3828.4,0.52221]
[1753619014048,2.04662,3828.4,3828.3,1.88083]
[1753619014348,25.74992,3828.4,3828.3,4.9676]
[1753619015849,25.74992,3828.4,3828.3,4.0501]
[1753619016047,25.74992,3828.4,3828.3,0.7686]
[1753619017149,4.28796,3828.1,3828.0,4.3776]
[1753619017343,25.74996,3828.1,3828.0,3.4601]
[1753619018145,25.74996,3828.1,3828.0,4.9676]
[1753619019846,25.74996,3828.1,3828.0,5.9391]
[1753619020152,25.74996,3828.1,3828.0,6.46138]
[1753619020351,4.28796,3828.1,3828.0,6.46138]
[1753619020651,0.52226,3828.1,3828.0,6.46138]
[1753619021140,3.2078,3828.2,3828.1,0.52226]
[1753619021346,3.7789,3828.7,3828.6,5.9391]
[1753619021546,25.2309,3828.7,3828.6,5.9391]
[1753619021747,3.7789,3828.7,3828.6,6.4613]
[1753619021951,24.6588,3828.7,3828.6,6.4613]
[1753619022142,25.18098,3828.7,3828.6,6.4613]
[1753619023351,25.75208,3828.7,3828.6,6.4613]
[1753619023850,28.94668,3828.7,3828.6,6.4613]
[1753619024442,26.70538,3828.7,3828.6,6.4613]
[1753619024843,25.75208,3828.7,3828.6,6.4613]
[1753619025246,25.18098,3828.7,3828.6,6.4613]
[1753619025442,3.2078,3828.7,3828.6,6.4613]
[1753619025646,7.49563,3829.1,3829.0,5.9391]
[1753619025859,28.93963,3829.1,3829.0,5.9391]
[1753619028250,28.93963,3829.1,3829.0,1.3586]
[1753619028452,2.04656,3828.9,3828.8,4.9676]
[1753619028755,25.72686,3828.9,3828.8,4.9676]
[1753619029449,25.72686,3828.9,3828.8,5.9391]
[1753619029752,25.72686,3828.9,3828.8,0.7686]
[1753619029948,2.04658,3828.7,3828.6,2.8211]
[1753619030148,2.04658,3828.7,3828.3,4.3776]
[1753619030149,1.5244,3828.4,3828.3,4.3776]
[1753619030355,25.72392,3828.4,3828.3,4.3776]
[1753619030754,25.72392,3828.4,3828.3,4.9676]
[1753619030955,25.72392,3828.4,3828.3,5.9391]
[1753619031454,23.48262,3828.4,3828.3,5.9391]
[1753619031656,21.433,3828.4,3828.3,6.46134]
[1753619031851,0.52222,3828.5,3828.4,0.52221]
[1753619032052,21.95422,3828.5,3828.4,6.46131]
[1753619033355,21.432,3828.5,3828.4,6.46131]
[1753619034161,0.52221,3828.6,3828.5,2.85231]
[1753619034461,21.95321,3828.6,3828.5,6.46131]
[1753619035260,21.95021,3828.6,3828.5,6.46131]
[1753619035461,22.52131,3828.6,3828.5,6.46131]
[1753619035762,21.9991,3828.6,3828.5,6.46131]
[1753619036263,3.7657,3828.9,3828.8,2.85227]
[1753619036558,25.1917,3828.9,3828.8,6.46127]
[1753619036959,24.3399,3828.9,3828.8,6.46127]
[1753619037757,22.9504,3828.9,3828.8,6.46127]
[1753619037963,1.5244,3828.9,3828.8,6.46127]
[1753619038268,3.2078,3829.0,3828.9,6.49396]
[1753619038564,24.6278,3829.0,3828.9,6.49396]
[1753619039060,3.56313,3828.9,3828.5,3.5873]
[1753619039263,3.7703,3828.6,3828.5,6.49401]
[1753619039468,24.6258,3828.6,3828.5,6.49401]
[1753619039664,25.1883,3828.6,3828.5,6.49401]
[1753619039959,3.7703,3828.6,3828.5,6.49401]
[1753619040167,0.5625,3829.0,3828.9,2.3845]
[1753619040361,21.416,3829.0,3828.9,6.49396]
[1753619040756,4.29242,3829.2,3829.1,6.49393]
[1753619040957,25.70842,3829.2,3829.1,6.49393]
[1753619041152,26.65752,3829.2,3829.1,6.49393]
[1753619041366,28.91522,3829.2,3829.1,6.49393]
[1753619042265,7.49922,3829.2,3829.1,6.49393]
[1753619042465,28.91422,3829.2,3829.1,6.49393]
[1753619043267,28.91222,3829.2,3829.1,6.49393]
[1753619043474,28.3901,3829.2,3829.1,6.49393]
[1753619043766,28.91221,3829.2,3829.1,6.49393]
[1753619043970,28.91221,3829.2,3829.1,5.9718]
[1753619044467,28.91221,3829.2,3829.1,6.49393]
[1753619044872,28.91221,3829.2,3829.1,5.9718]
[1753619045369,28.91221,3829.2,3829.1,6.49393]
[1753619047970,28.3901,3829.2,3829.1,6.49393]
[1753619048164,7.49921,3829.2,3829.1,6.49393]
[1753619048366,28.90121,3829.2,3829.1,6.49393]
[1753619050071,28.3791,3829.2,3829.1,6.49393]
[1753619050272,28.3741,3829.2,3829.1,6.49393]
[1753619050469,28.89621,3829.2,3829.1,6.49393]
[1753619051672,28.3741,3829.2,3829.1,6.49393]
[1753619052372,28.89221,3829.2,3829.1,6.49393]
[1753619052772,25.68441,3829.2,3829.1,6.49393]
[1753619053175,4.29141,3829.2,3829.1,6.49393]
[1753619053374,25.68441,3829.2,3829.1,6.49393]
[1753619054970,4.29141,3829.2,3829.1,6.49393]
[1753619055477,25.67941,3829.2,3829.1,6.49393]
[1753619057378,25.67541,3829.2,3829.1,6.49393]
[1753619057579,25.1533,3829.2,3829.1,6.49393]
[1753619057973,25.67541,3829.2,3829.1,6.49393]
[1753619058174,4.29141,3829.2,3829.1,6.49393]
[1753619058374,25.67541,3829.2,3829.1,6.49393]
[1753619059278,25.67141,3829.2,3829.1,6.49393]
[1753619060083,25.1493,3829.2,3829.1,6.49393]
[1753619060380,25.66941,3829.2,3829.1,6.49393]
[1753619061276,25.66741,3829.2,3829.1,6.49393]
[1753619062380,25.1433,3829.2,3829.1,6.49393]
[1753619063182,3.7693,3829.2,3829.1,6.49393]
[1753619063382,25.1433,3829.2,3829.1,6.49393]
[1753619064283,25.1423,3829.2,3829.1,6.49393]
[1753619064582,25.66441,3829.2,3829.1,6.49393]
[1753619064783,25.1423,3829.2,3829.1,6.49393]
[1753619065180,3.7693,3829.2,3829.1,6.49393]
[1753619065382,25.1403,3829.2,3829.1,6.49393]
[1753619067086,25.66241,3829.2,3829.1,6.49393]
[1753619067488,25.1403,3829.2,3829.1,6.49393]
[1753619068287,25.66241,3829.2,3829.1,6.49393]
[1753619068484,25.1403,3829.2,3829.1,6.49393]
[1753619068685,25.66241,3829.2,3829.1,6.49393]
[1753619069188,25.1403,3829.2,3829.1,6.49393]
[1753619074893,25.66241,3829.2,3829.1,6.49393]
[1753619075695,21.9135,3829.2,3829.1,6.49393]
[1753619076086,0.5625,3829.2,3829.1,6.49393]
[1753619076291,21.9115,3829.2,3829.1,6.49393]
[1753619078093,0.5625,3829.2,3829.1,6.49393]
[1753619078394,21.9075,3829.2,3829.1,6.49393]
[1753619078795,23.3727,3829.2,3829.1,6.49393]
[1753619079095,2.0277,3829.2,3829.1,6.49393]
[1753619079287,23.3707,3829.2,3829.1,6.49393]
[1753619079999,6.1374,3829.4,3829.3,2.2742]
[1753619080194,0.5697,3829.4,3829.3,6.2465]
[1753619080493,21.9117,3829.4,3829.3,6.2465]
[1753619082198,0.5697,3829.4,3829.3,6.2465]
[1753619084902,2.0349,3829.4,3829.3,6.2465]
[1753619087802,0.5697,3829.4,3829.3,6.2465]
[1753619089608,2.3599,3829.6,3829.5,6.24647]
[1753619089609,0.5697,3829.6,3829.5,6.24647]
[1753619089809,3.2078,3829.8,3829.7,0.52205]
[1753619089810,2.3599,3829.8,3829.7,0.52205]
[1753619090008,21.8927,3829.8,3829.7,6.24645]
[1753619090307,25.2436,3829.8,3829.7,6.24645]
[1753619092208,3.9206,3829.8,3829.7,6.24645]
[1753619095411,0.2,3829.9,3829.7,5.7244]
[1753619095607,0.2,3829.9,3829.8,6.24643]
[1753619095816,7.1284,3830.7,3830.6,0.52192]
[1753619096108,29.20260134,3830.7,3830.6,4.71392]
[1753619096314,29.20260134,3830.7,3830.6,6.24632]
[1753619098110,29.72451134,3830.7,3830.6,6.24632]
[1753619099914,29.20260134,3830.7,3830.6,6.24632]
[1753619100515,29.19260134,3830.7,3830.6,6.24632]
[1753619100711,28.4294,3830.7,3830.6,6.24632]
[1753619100916,26.0695,3830.7,3830.6,6.24632]
[1753619101114,21.299,3830.8,3830.6,6.24632]
[1753619101310,1.4004,3830.9,3830.8,0.5219]
[1753619101511,1.9813,3830.9,3830.8,6.3578]
[1753619101818,0.5809,3830.9,3830.8,6.3578]
[1753619102121,5.1891,3831.1,3831.0,6.35777]
[1753619102321,3.7887,3831.1,3831.0,6.35777]
[1753619102518,3.2078,3831.1,3831.0,6.35777]
[1753619102720,0.5989,3831.3,3831.2,6.35774]
[1753619103017,1.36094347,3831.3,3831.2,6.35774]
[1753619103620,0.018,3831.3,3831.2,6.35774]
[1753619104325,0.5989,3831.3,3831.2,6.35774]
[1753619104720,2.8653,3831.3,3831.2,6.35774]
[1753619104920,3.8824,3831.3,3831.2,6.35774]
[1753619107922,4.40423,3831.3,3831.2,6.35774]
[1753619109630,3.8824,3831.3,3831.2,6.35774]
[1753619110020,0.018,3831.3,3831.2,6.35774]
[1753619110220,0.52179,3831.6,3831.5,4.2216]
[1753619110426,3.8644,3831.6,3831.5,4.7434]
[1753619110630,3.8644,3831.6,3831.5,6.3577]
[1753619112026,4.38619,3831.6,3831.5,2.4812]
[1753619112230,3.8644,3831.3,3831.2,4.2216]
[1753619112431,3.8644,3831.3,3831.2,6.35774]
[1753619116633,0.5809,3831.3,3831.2,6.35774]
[1753619116835,3.8644,3831.6,3831.5,3.7338]
[1753619117033,3.8644,3831.6,3831.5,6.3577]
[1753619117235,0.2,3831.9,3831.8,0.52176]
[1753619117532,4.0644,3831.9,3831.8,6.35766]
[1753619118936,0.7809,3831.9,3831.8,6.35766]
[1753619119442,2.1813,3831.9,3831.8,6.35766]
[1753619119936,3.0473,3831.9,3831.8,6.35766]
[1753619120138,0.7809,3831.9,3831.8,6.35766]
[1753619120332,0.2,3831.9,3831.8,6.35766]
[1753619120537,0.2,3831.9,3831.8,9.56546]
[1753619122128,0.5809,3832.5,3832.4,6.35758]
[1753619122538,3.8644,3832.8,3832.7,6.35754]
[1753619123334,0.5809,3832.8,3832.7,6.35754]
[1753619125435,3.8644,3832.8,3832.7,6.35754]
[1753619125628,0.52164,3832.7,3832.5,0.52167]
[1753619125831,2.2664,3832.5,3832.4,0.52167]
[1753619126035,2.464,3832.5,3832.4,0.52167]
[1753619126334,1.4004,3832.5,3832.1,4.2216]
[1753619126530,3.8644,3832.2,3832.1,5.35602]
[1753619126934,4.38611,3832.2,3832.1,4.8343]
[1753619127137,1.598,3831.8,3831.7,3.2078]
[1753619127439,4.38616,3831.8,3831.7,3.2078]
[1753619127731,22.54926,3832.3,3831.2,2.21]
[1753619127732,1.604,3831.4,3831.2,2.21]
[1753619127938,4.40583,3831.3,3831.2,2.21]
[1753619128238,3.884,3831.3,3831.2,2.73184]
[1753619128635,3.884,3831.3,3831.2,6.28204]
[1753619130029,1.604,3831.3,3831.2,6.28204]
[1753619130943,3.042,3831.3,3831.2,5.7602]
[1753619131133,4.40583,3831.3,3831.2,5.7602]
[1753619132334,2.28,3831.2,3830.9,2.2097]
[1753619132536,4.40587,3831.0,3830.9,2.2097]
[1753619133631,4.40587,3831.0,3830.9,0.7199]
[1753619133832,4.4059,3830.8,3830.7,5.7599]
[1753619134640,4.4059,3830.8,3830.7,6.28181]
[1753619134936,0.52192,3830.7,3830.5,1.5942]
[1753619135142,3.884,3830.6,3830.5,4.1801]
[1753619135439,4.40592,3830.6,3830.5,5.26194]
[1753619135636,4.40592,3830.6,3830.5,6.28184]
[1753619136440,3.884,3830.6,3830.5,6.28184]
[1753619140246,4.40592,3830.6,3830.5,0.52194]
[1753619140447,2.12596,3830.4,3830.3,4.70205]
[1753619140641,1.604,3830.4,3830.3,6.28185]
[1753619141035,3.884,3830.4,3830.3,6.28185]
[1753619141445,3.7845,3830.7,3830.6,2.82162]
[1753619141641,3.7845,3830.7,3830.6,6.28182]
[1753619141841,0.5767,3830.7,3830.6,6.28182]
[1753619142145,4.40591,3830.7,3830.6,6.28182]
[1753619143147,1.604,3830.4,3830.3,1.61806]
[1753619143353,4.40595,3830.4,3830.3,1.61806]
[1753619143752,4.40595,3830.4,3830.3,2.33796]
[1753619143955,4.40595,3830.4,3830.3,3.82776]
[1753619144245,4.40595,3830.4,3830.3,5.26196]
[1753619144647,3.884,3830.4,3830.3,5.26196]
[1753619144852,3.884,3830.4,3830.3,6.28186]
[1753619145151,4.40595,3830.4,3830.3,6.28186]
[1753619145346,3.884,3830.4,3830.3,6.28186]
[1753619145545,4.40595,3830.4,3830.3,6.28186]
[1753619145746,3.884,3830.4,3830.3,6.28186]
[1753619149252,4.40595,3830.4,3830.3,6.28186]
[1753619150150,3.884,3830.4,3830.3,6.28186]
[1753619150346,4.40595,3830.4,3830.3,6.28186]
[1753619150547,0.52194,3830.5,3830.4,2.82165]
[1753619150746,1.09864,3830.5,3830.4,6.28185]
[1753619151146,4.40594,3830.5,3830.4,6.28185]
[1753619151650,3.884,3830.5,3830.4,6.28185]
[1753619152548,4.40594,3830.5,3830.4,6.28185]
[1753619154654,7.61374,3830.5,3830.4,6.28185]
[1753619154951,2.126,3830.2,3830.1,2.82167]
[1753619155150,4.406,3830.2,3830.1,6.28187]
[1753619157551,1.46338,3830.3,3830.2,1.25605]
[1753619157855,3.7539,3830.3,3830.2,6.31815]
[1753619158056,2.7582,3830.8,3830.7,2.3543]
[1753619158257,3.3344,3830.8,3830.7,5.7962]
[1753619158960,3.3344,3830.8,3830.7,6.31811]
[1753619159160,4.2758,3830.8,3830.7,6.31811]
[1753619159455,3.2078,3830.9,3830.8,2.8762]
[1753619159662,3.2078,3830.9,3830.8,6.3181]
[1753619161462,2.2363,3831.2,3831.1,2.87616]
[1753619161463,4.27575,3831.2,3831.1,2.87616]
[1753619161659,4.27575,3831.2,3831.1,6.31806]
[1753619161660,3.7539,3831.2,3831.1,6.31806]
[1753619163160,3.7539,3831.2,3830.5,2.823]
[1753619163161,2.3609,3830.6,3830.5,2.823]
[1753619163358,4.27584,3830.6,3830.5,1.25604]
[1753619163665,4.27584,3830.6,3830.5,2.33274]
[1753619163864,4.27584,3830.6,3830.5,5.30594]
[1753619164165,3.7539,3830.6,3830.5,6.31814]
[1753619164355,4.27582,3830.6,3830.5,6.31814]
[1753619164561,4.27582,3830.6,3830.5,0.7341]
[1753619164761,0.52194,3830.5,3830.4,3.72975]
[1753619164959,4.27584,3830.5,3830.4,3.72975]
[1753619165266,4.27584,3830.5,3830.4,3.2078]
[1753619167872,1.46342,3829.9,3829.8,0.19321906]
[1753619168072,6.06422,3829.9,3829.8,5.98941906]
[1753619170177,6.06422,3829.9,3829.8,4.46311906]
[1753619170577,6.06422,3829.9,3829.8,5.98941906]
[1753619170780,6.06422,3829.9,3829.8,6.51144906]
[1753619170978,5.5422,3829.9,3829.8,6.51144906]
[1753619171280,4.67122,3829.9,3829.8,6.51144906]
[1753619171679,6.06422,3829.9,3829.8,6.51144906]
[1753619179189,6.06422,3829.9,3829.8,5.98941906]
[1753619179686,6.06422,3829.9,3829.8,6.51144906]
[1753619180588,6.06422,3829.9,3829.8,5.98941906]
[1753619180885,6.06422,3829.9,3829.8,2.37421906]
[1753619181084,6.06422,3829.9,3829.8,3.90051906]
[1753619181289,6.06422,3829.9,3829.8,4.97721906]
[1753619181588,6.06422,3829.9,3829.8,5.98941906]
[1753619182989,4.67122,3829.9,3829.8,5.98941906]
[1753619183186,3.72982,3829.9,3829.8,5.98941906]
[1753619183889,6.06422,3829.9,3829.8,4.24311906]
[1753619184088,6.06422,3829.9,3829.8,4.97721906]
[1753619184387,6.06422,3829.9,3829.8,5.98941906]
[1753619185991,3.2078,3829.9,3829.8,6.51144906]
[1753619186588,3.72982,3829.9,3829.8,6.51144906]
[1753619186992,6.06422,3829.9,3829.8,4.24311906]
[1753619187386,6.06422,3829.9,3829.8,4.97721906]
[1753619187888,6.07062,3829.9,3829.8,1.03211906]
[1753619188289,6.06812,3829.9,3829.8,1.64231906]
[1753619188489,6.06812,3829.9,3829.8,4.78531906]
[1753619188690,6.06812,3829.9,3829.8,5.71271906]
[1753619197188,6.83119544,3829.9,3829.8,5.71271906]
[1753619203693,6.83369544,3829.9,3829.8,1.03211906]
[1753619205892,32.98469544,3829.9,3829.8,1.10741906]
[1753619206500,6.83119544,3829.9,3829.8,4.14431906]
[1753619206696,27.98119544,3829.9,3829.8,4.86061906]
[1753619208600,24.77339544,3829.9,3829.8,4.86061906]
[1753619209095,27.98119544,3829.9,3829.8,4.86061906]
[1753619209995,27.98119544,3829.9,3829.8,3.47271906]
[1753619210595,27.98119544,3829.9,3829.8,4.86061906]
[1753619211497,27.98369544,3829.9,3829.8,2.43391906]
[1753619212093,27.98369544,3829.9,3829.8,1.71761906]
[1753619212302,27.98369544,3829.9,3829.8,1.10741906]
[1753619216603,28.26994753,3829.9,3829.8,1.10741906]
[1753619217004,27.98369544,3829.9,3829.8,1.10741906]
[1753619219604,28.26998972,3829.9,3829.8,1.10741906]
[1753619219908,28.26999008,3829.9,3829.8,1.10741906]
[1753619220314,28.26749008,3829.9,3829.8,4.97611906]
[1753619220609,28.26749008,3829.9,3829.8,5.88931906]
[1753619223406,28.26899008,3829.9,3829.8,1.10741906]
[1753619224712,28.26749008,3829.9,3829.8,1.10741906]
[1753619224911,28.26529395,3829.9,3829.8,4.94021906]
[1753619226410,28.26529395,3829.9,3829.8,5.85341906]
[1753619227512,28.26529395,3829.9,3829.8,1.10741906]
[1753619227702,28.26679395,3829.9,3829.8,1.10741906]
[1753619227909,28.26529395,3829.9,3829.8,3.61891906]
[1753619228107,28.26529395,3829.9,3829.8,4.94021906]
[1753619228613,28.26529395,3829.9,3829.8,0.56144906]
[1753619228614,28.61963203,3829.9,3829.8,0.56144906]
[1753619229000,1.5395,3829.5,3829.4,4.746]
[1753619229204,29.43224931,3829.5,3829.4,4.746]
[1753619230905,28.52894931,3829.5,3829.4,5.5821]
[1753619233410,29.43224931,3829.5,3829.4,5.5821]
[1753619233819,28.52894931,3829.5,3829.4,5.5821]
[1753619236013,27.15424931,3829.5,3829.4,5.5821]
[1753619236315,28.52894931,3829.5,3829.4,5.5821]
[1753619238716,25.32114931,3829.5,3829.4,5.5821]
[1753619238917,28.52894931,3829.5,3829.4,5.5821]
[1753619241014,7.40494931,3829.5,3829.4,5.5821]
[1753619241316,24.48174931,3829.5,3829.4,5.5821]
[1753619242018,24.48174931,3829.5,3829.4,6.10419]
[1753619242422,24.48174931,3829.5,3829.4,5.5821]
[1753619242721,24.48174931,3829.5,3829.4,6.10419]
[1753619242916,24.48174931,3829.5,3829.4,5.5821]
[1753619243818,24.48174931,3829.5,3829.4,6.10419]
[1753619244425,23.95667931,3829.5,3829.4,6.10419]
[1753619244913,24.47874931,3829.5,3829.4,6.10419]
[1753619245422,23.95667931,3829.5,3829.4,6.10419]
[1753619245823,2.85167931,3829.5,3829.4,6.10419]
[1753619246019,1.30495,3830.3,3829.8,6.10412]
[1753619246020,3.2078,3829.9,3829.8,6.10412]
[1753619246212,24.3088,3829.9,3829.8,6.10412]
[1753619246415,3.2078,3829.9,3829.8,6.10412]
[1753619246715,3.72978,3830.3,3830.2,6.10408]
[1753619247024,24.83078,3830.3,3830.2,6.10408]
[1753619247621,24.3088,3830.3,3830.2,6.10408]
[1753619247820,24.83077,3830.3,3830.2,6.10408]
[1753619248222,21.101,3830.3,3830.2,6.10408]
[1753619249823,0.52197,3830.3,3830.2,6.10408]
[1753619251325,0.52195,3830.4,3830.3,2.71605]
[1753619251529,0.52195,3830.4,3830.3,6.07205]
[1753619253027,21.61895,3830.5,3830.4,0.52195]
[1753619253228,21.61895,3830.5,3830.4,6.07205]
[1753619253725,0.52195,3830.5,3830.4,6.07205]
[1753619254221,3.10955,3830.5,3830.4,6.07205]
[1753619254427,3.80965,3830.5,3830.4,6.07205]
[1753619256731,5.23385,3830.5,3830.4,6.07205]
[1753619257028,6.22125,3830.5,3830.4,6.07205]
[1753619257231,0.52193,3830.6,3830.5,2.71604]
[1753619257431,0.52193,3830.6,3830.5,6.07204]
[1753619257632,23.90662,3830.7,3830.6,2.71602]
[1753619257822,25.33082,3830.7,3830.6,6.07202]
[1753619258320,27.31222,3830.7,3830.6,6.07202]
[1753619259832,27.31222,3830.7,3830.6,5.5501]
[1753619268328,1.22208,3830.2,3830.1,3.5673]
[1753619268536,6.22136,3829.6,3829.5,2.2301]
[1753619268930,27.28836,3829.6,3829.5,4.2129]
[1753619269125,27.28836,3829.6,3829.5,5.5861]
[1753619272332,25.86416,3829.6,3829.5,5.5861]
[1753619272537,22.89536,3829.6,3829.5,5.5861]
[1753619272737,26.42406,3829.6,3829.5,5.5501]
[1753619273037,27.28836,3829.6,3829.5,5.5501]
[1753619274142,27.28836,3829.6,3829.5,2.878]
[1753619274543,27.28836,3829.6,3829.5,5.5501]
[1753619275242,27.28836,3829.6,3829.5,6.07217]
[1753619275544,27.28836,3829.6,3829.5,5.5501]
[1753619278449,5.4352,3829.5,3829.4,2.5538]
[1753619278645,5.95727,3829.5,3829.4,2.5538]
[1753619278845,5.95727,3829.5,3829.4,4.9547]
[1753619279539,9.16507,3829.5,3829.4,4.9547]
[1753619279740,2.1365,3829.3,3829.0,0.8339]
[1753619279951,5.95733,3829.1,3829.0,4.2004]
[1753619280151,27.01533,3829.1,3829.0,4.2004]
[1753619280453,26.4932,3829.1,3829.0,6.18594]
[1753619280752,27.01533,3829.1,3829.0,6.18594]
[1753619281453,27.01533,3829.1,3829.0,5.6638]
[1753619288356,27.01533,3829.1,3829.0,6.18594]
[1753619289657,27.01533,3829.1,3829.0,5.6638]
[1753619289954,3.99248,3828.8,3828.7,5.47687]
[1753619290152,24.5193,3828.8,3828.7,6.18597]
[1753619290456,26.4842,3828.8,3828.7,6.18597]
[1753619292155,25.1504,3828.8,3828.7,6.18597]
[1753619292353,25.67257,3828.8,3828.7,6.18597]
[1753619292553,25.1504,3828.8,3828.7,6.18597]
[1753619292754,25.67257,3828.8,3828.7,6.18597]
[1753619292954,27.00637,3828.8,3828.7,6.18597]
[1753619294757,26.4842,3828.8,3828.7,6.18597]
[1753619294956,27.00637,3828.8,3828.7,6.18597]
[1753619295157,26.4842,3828.8,3828.7,6.18597]
[1753619295958,24.2612,3828.8,3828.7,6.18597]
[1753619296365,3.2122,3828.8,3828.7,6.18597]
[1753619298155,4.1014,3828.8,3828.7,6.18597]
[1753619298455,5.4352,3828.8,3828.7,6.18597]
[1753619299458,4.1014,3828.8,3828.7,6.18597]
[1753619300358,5.4352,3828.8,3828.7,6.18597]
[1753619301363,3.99272,3827.0,3826.3,1.0904]
[1753619301658,3.99272,3827.0,3822.1,14.98436261]
[1753619301659,2.0076,3824.9,3824.8,7.78762663]
[1753619301855,2.0076,3824.9,3822.4,13.11131729]
[1753619301856,1.1063,3822.5,3822.4,13.82041729]
[1753619302058,1.1063,3823.4,3823.1,2.2761]
[1753619302258,3.8744,3823.2,3823.1,5.7091]
[1753619302554,3.8744,3823.2,3822.4,13.15683974]
[1753619302555,0.523,3822.8,3822.4,11.75140303]
[1753619302750,5.94280689,3823.7,3822.4,11.75140303]
[1753619302751,3.2078,3822.5,3822.4,11.75140303]
[1753619303457,3.2078,3822.5,3822.4,12.84180303]
[1753619303653,2.56094,3822.5,3822.4,6.0904]
[1753619303858,3.2078,3822.9,3822.4,8.3877]
[1753619304161,3.2078,3822.5,3822.4,3.3877]
[1753619305160,4.14967293,3822.5,3822.4,3.3877]
[1753619305355,4.14967293,3822.5,3822.4,5.6638]
[1753619305766,3.2078,3822.5,3822.4,5.6638]
[1753619305960,4.14955972,3822.5,3822.4,5.6638]
[1753619306554,4.14955972,3822.5,3822.4,6.18684]
[1753619309063,4.51753574,3822.5,3822.4,6.18684]
[1753619310458,5.90110705,3822.5,3822.4,5.84675737]
[1753619310762,0.68406574,3822.5,3822.4,5.84675737]
[1753619310963,3.48327131,3822.8,3822.7,5.2634]
[1753619311159,5.3075,3822.8,3822.7,1.3788]
[1753619311364,5.311,3822.8,3822.7,1.3788]
[1753619312266,5.3075,3822.8,3822.7,0.8558]
[1753619312763,5.311,3822.8,3822.2,0.01831382]
[1753619313065,5.3075,3822.3,3822.2,4.75871382]
[1753619313259,6.68871418,3822.3,3822.2,6.05951382]
[1753619313668,6.51781418,3822.3,3822.2,6.05951382]
[1753619314063,5.1366,3822.3,3822.2,6.58258382]
[1753619315971,5.83406,3822.3,3822.2,0.01831382]
[1753619316871,10.83406,3822.3,3822.2,0.01831382]
[1753619317068,2.60801,3821.9,3821.8,0.19362351]
[1753619317378,0.8381,3820.9,3820.8,2.3847]
[1753619317572,1.6144,3820.9,3820.8,6.56446]
[1753619318574,2.13765,3820.9,3820.8,6.0412]
[1753619319178,3.51614204,3820.9,3820.8,6.0412]
[1753619319974,3.51614204,3820.9,3820.8,6.56446]
[1753619320179,2.13765,3820.9,3820.8,6.0412]
[1753619320374,2.13765,3820.9,3820.8,6.56446]
[1753619320576,1.6144,3820.9,3820.8,6.56446]
[1753619320776,2.13765,3820.9,3820.8,6.56446]
[1753619321171,3.515999,3820.9,3820.8,6.0412]
[1753619321372,3.515999,3820.9,3820.8,4.7404]
[1753619321776,2.13765,3820.9,3820.8,3.85044146]
[1753619321969,4.49685,3820.9,3820.8,3.2115]
[1753619322174,6.33524286,3820.9,3820.8,2.2571]
[1753619322583,0.52325,3820.9,3820.8,5.03555]
[1753619322773,2.30735,3820.9,3820.8,4.5123]
[1753619323080,7.22583714,3820.9,3820.8,4.5123]
[1753619323274,7.22583714,3820.9,3820.8,3.2115]
[1753619323775,5.38744428,3820.9,3820.8,3.2115]
[1753619324173,5.38744428,3820.9,3820.8,5.26366]
[1753619324372,7.22745871,3820.9,3820.8,4.7404]
[1753619324676,7.22745871,3820.9,3820.8,6.0412]
[1753619325070,5.38744428,3820.9,3820.8,6.0412]